Workbook

Sheet PRESENTAZIONE

Sheet FATTURA
A1: 5
A4: Tel.0881-545676
A5: Cell.3201198712
A6: www.soluzionimediaweb.it
F8: =INDEX('ELENCO ANAGRAFICA'!B3:B100,A1,1) -> Ditta demo 5
F9: =INDEX('ELENCO ANAGRAFICA'!D3:D100,A1,1) -> Via Bari, 1 | H9: =INDEX('ELENCO ANAGRAFICA'!E3:E100,A1,1) -> Bari | I9: =INDEX('ELENCO ANAGRAFICA'!F3:F100,A1,1) -> 11116
E10: Tel. | F10: =INDEX('ELENCO ANAGRAFICA'!I3:I100,A1,1) -> 3330000005
E11: Cell. | F11: =INDEX('ELENCO ANAGRAFICA'!K3:K100,A1,1) -> 3330000005 | G11: P.Iva | H11: =INDEX('ELENCO ANAGRAFICA'!M3:M100,A1,1) -> 12345678905
E12: Cod. Fisc. | F12: =INDEX('ELENCO ANAGRAFICA'!L3:L100,A1,1) -> 123456789aaaaa5
A14: N | B14: Data | C14: Modello Atrezz. | E14: Dati | F14: Codice Attrezz. | H14: Valore
A15: 16 | B15: 19/05/16
A16: n | B16: Descrizione articoli | E16: Qtà | F16: Prezzo | G16: % | H16: Iva | I16: Importo
A17: 1 | B17: Consulenza Marketing | E17: 1 | F17: 150 | G17: 0.22 | H17: =(F17*G17) -> 33 | I17: =SUM(F17+H17) -> 183
A18: 2 | B18: Servizi di Assistenza | E18: 1 | F18: 170 | G18: 0.22 | H18: =(F18*G18) -> 37.4 | I18: =SUM(F18+H18) -> 207.4
A19: 3 | B19: Assistenza Tecnica/Legale | E19: 1 | F19: 220 | G19: 0.1 | H19: =(F19*G19) -> 22 | I19: =(F19+H19) -> 242
A20: 4 | B20: Verifica Bilancio | E20: 1 | F20: 150 | G20: 0.1 | H20: =(F20*G20) -> 15 | I20: =(F20+H20) -> 165
A21: 5 | B21: Registrazione Dominio | E21: 1 | F21: 99 | G21: 0.22 | H21: =(F21*G21) -> 21.78 | I21: =(F21+H21) -> 120.78
A35: TIPO PAGAMENTO
A36: ASSEGNO BANCARIO
A38: TOTALE IMPONIBILE | D38: TOTALE IVA | G38: TOTALE FATTURA
A39: =SUM(F17:F21) -> 789 | D39: =SUM(H17:H21) -> 129.18 | G39: =SUM(I17:I21) -> 918.18 | L39: SI

Sheet ELENCO ANAGRAFICA
A1: DATI CLIENTI
A2: CODICE | B2: RAGIONE SOCIALE | C2: NOME/COGNOME | D2: INDIRIZZO | E2: CITTA | F2: CAP | G2: E-MAIL | H2: SITO | I2: TEL | J2: FAX | K2: CELL | L2: COD. FISCALE | M2: P. IVA | N2: RAP. LEGALE | O2: NATO A | P2: NATO IL
A3: 1 | B3: Ditta demo 1 | C3: Mario Rosso | D3: Via Cagliari,1 | E3: Cagliari | F3: 11112 | G3: email1@emailcliente.it | H3: www.sitocliente1.it | I3: 3330000001 | J3: 3330000001 | K3: 3330000001 | L3: 123456789aaaaa1 | M3: 12345678901 | N3: Mario Rosso | O3: Cagliari | P3: 1975-03-12
A4: 2 | B4: Ditta demo 2 | C4: Giuseppe Bianco | D4: Via Napoli,1 | E4: Napoli | F4: 11113 | G4: email2@emailcliente.it | H4: www.sitocliente2.it | I4: 3330000002 | J4: 3330000002 | K4: 3330000002 | L4: 123456789aaaaa2 | M4: 12345678902 | N4: Giuseppe Bianco | O4: Napoli | P4: 1990-07-04
A5: 3 | B5: Ditta demo 3 | C5: Antonio Azzurro | D5: Via Roma,1 | E5: Roma | F5: 11114 | G5: email3@emailcliente.it | H5: www.sitocliente3.it | I5: 3330000003 | J5: 3330000003 | K5: 3330000003 | L5: 123456789aaaaa3 | M5: 12345678903 | N5: Antonio Azzurro | O5: Roma | P5: 1985-08-30
A6: 4 | B6: Ditta demo 4 | C6: Andrea Verde | D6: Via Torino,1 | E6: Torino | F6: 11115 | G6: email4@emailcliente.it | H6: www.sitocliente4.it | I6: 3330000004 | J6: 3330000004 | K6: 3330000004 | L6: 123456789aaaaa4 | M6: 12345678904 | N6: Andrea Verde | O6: Torino | P6: 1989-09-09
A7: 5 | B7: Ditta demo 5 | C7: Francesco Nero | D7: Via Bari, 1 | E7: Bari | F7: 11116 | G7: email5@emailcliente.it | H7: www.sitocliente5.it | I7: 3330000005 | J7: 3330000005 | K7: 3330000005 | L7: 123456789aaaaa5 | M7: 12345678905 | N7: Francesco Nero | O7: Bari | P7: 1988-08-08
A8: 6 | B8: Ditta demo 6 | C8: Giovanni Grigio | D8: Via Palermo,1 | E8: Palermo | F8: 11117 | G8: email6@emailcliente.it | H8: www.sitocliente6.it | I8: 3330000006 | J8: 3330000006 | K8: 3330000006 | L8: 123456789aaaaa6 | M8: 12345678906 | N8: Mariano Giallo | O8: Palermo | P8: 1977-07-07
A9: 7 | B9: Ditta demo 7 | C9: Mariano Giallo | D9: Via Milano,1 | E9: Milano | F9: 11118 | G9: email7@emailcliente.it | H9: www.sitocliente7.it | I9: 3330000007 | J9: 3330000007 | K9: 3330000007 | L9: 123456789aaaaa7 | M9: 12345678907 | N9: Giovanni Giallo | O9: Milano | P9: 1966-06-06
A10: 8 | B10: Ditta demo 8 | C10: Alessandro Marrone | D10: Via Venezia,1 | E10: Venezia | F10: 11119 | G10: email8@emailcliente.it | H10: www.sitocliente8.it | I10: 3330000008 | J10: 3330000008 | K10: 3330000008 | L10: 123456789aaaaa8 | M10: 12345678908 | N10: Alessandro Marrone | O10: Venezia | P10: 1955-05-05
A11: 9 | B11: Ditta demo 9 | C11: Luca Arancio | D11: Via Genova,1 | E11: Genova | F11: 11110 | G11: email9@emailcliente.it | H11: www.sitocliente9.it | I11: 3330000009 | J11: 3330000009 | K11: 3330000009 | L11: 123456789aaaaa9 | M11: 12345678909 | N11: Luca Arancio | O11: Genova | P11: 1973-11-23
A12: 10 | B12: Ditta demo 10 | C12: Ciro Viola | D12: Via Firenze,1 | E12: Firenze | F12: 11111 | G12: email10@emailcliente.it | H12: www.sitocliente10.it | I12: 3330000010 | J12: 3330000010 | K12: 3330000010 | L12: 123456789aaaa10 | M12: 12345678900 | N12: Ciro Viola | O12: Firenze | P12: 1992-03-06

Sheet FATTURA PROFORMA
A1: 1
B4: Tel.0881-545676
B5: Cell.3201198712
B6: www.mediaweb.it
F8: =INDEX('ELENCO ANAGRAFICA'!B3:B100,A1,1) -> Ditta demo 1
F9: =INDEX('ELENCO ANAGRAFICA'!D3:D100,A1,1) -> Via Cagliari,1 | H9: =INDEX('ELENCO ANAGRAFICA'!E3:E100,A1,1) -> Cagliari | I9: =INDEX('ELENCO ANAGRAFICA'!F3:F100,A1,1) -> 11112
F10: =INDEX('ELENCO ANAGRAFICA'!I3:I100,A1,1) -> 3330000001 | H10: =INDEX('ELENCO ANAGRAFICA'!I3:I100,A1,1) -> 3330000001
F11: =INDEX('ELENCO ANAGRAFICA'!K3:K100,A1,1) -> 3330000001 | H11: =INDEX('ELENCO ANAGRAFICA'!M3:M100,A1,1) -> 12345678901
F12: =INDEX('ELENCO ANAGRAFICA'!L3:L100,A1,1) -> 123456789aaaaa1
A14: N | B14: Data | C14: Modello Atrezz. | E14: Dati | F14: Codice Attrezz. | H14: Valore
A15: 6 | B15: 12/05/16
A16: n | B16: Descrizione articoli | E16: Qtà | F16: Prezzo | G16: % | H16: Iva | I16: Importo
A17: 1 | B17: Consulenza Marketing | E17: 1 | F17: 150 | G17: 0.22 | H17: =(F17*G17) -> 33 | I17: =SUM(F17+H17) -> 183
A18: 2 | B18: Servizi di Assistenza | E18: 1 | F18: 170 | G18: 0.22 | H18: =(F18*G18) -> 37.4 | I18: =SUM(F18+H18) -> 207.4
A19: 3 | B19: Assistenza Tecnica/Legale | E19: 1 | F19: 220 | G19: 0.1 | H19: =(F19*G19) -> 22 | I19: =(F19+H19) -> 242
A20: 4 | B20: Verifica Bilancio | E20: 1 | F20: 150 | G20: 0.1 | H20: =(F20*G20) -> 15 | I20: =(F20+H20) -> 165
A21: 5 | B21: Registrazione Dominio | E21: 1 | F21: 99 | G21: 0.22 | H21: =(F21*G21) -> 21.78 | I21: =(F21+H21) -> 120.78
A35: TIPO PAGAMENTO | E35: FATTURA PROFORMA
A36: ASSEGNO BANCARIO
A38: TOTALE IMPONIBILE | D38: TOTALE IVA | G38: TOTALE DOCUMENTO
A39: =SUM(F17:F21) -> 789 | D39: =SUM(H17:H21) -> 129.18 | G39: =SUM(I17:I21) -> 918.18

Sheet ARCHIVIO
A1: ELENCO FATTURE EMESSE | K1: N.FATTURE | M1: TOT IMPONIBILE | N1: TOT. IVA | O1: TOTALE
K2: =COUNTA(B18:B26) -> 0 | M2: =SUM(D18:D26) -> 0 | N2: =SUM(E18:E26) -> 0 | O2: =SUM(F18:F26) -> 0
A3: CLIENTE | B3: FATT. N. | C3: DATA FATTURA | D3: IMPONIBILE | E3: IVA | F3: TOTALE FATTURA | G3: PAGATO CLIENTE | H3: TIPO PAGAMENTO
A4: cliente1 | B4: 6 | C4: 19/05/16 | D4: 789 | E4: 129.18 | F4: 918.18 | G4: SI | H4: ASSEGNO BANCARIO
A5: cliente2 | B5: 6 | C5: 19/05/16 | D5: 789 | E5: 129.18 | F5: 918.18 | G5: SI | H5: ASSEGNO BANCARIO
A6: cliente3 | B6: 6 | C6: 19/05/16 | D6: 789 | E6: 129.18 | F6: 918.18 | G6: No | H6: ASSEGNO BANCARIO
A7: cliente4 | B7: 6 | C7: 19/05/16 | D7: 789 | E7: 129.18 | F7: 918.18 | G7: No | H7: ASSEGNO BANCARIO
A8: cliente5 | B8: 6 | C8: 19/05/16 | D8: 789 | E8: 129.18 | F8: 918.18 | G8: Si | H8: ASSEGNO BANCARIO
A9: cliente6 | B9: 6 | C9: 19/05/16 | D9: 789 | E9: 129.18 | F9: 918.18 | G9: No | H9: ASSEGNO BANCARIO
A10: cliente7 | B10: 6 | C10: 19/05/16 | D10: 789 | E10: 129.18 | F10: 918.18 | G10: SI | H10: ASSEGNO BANCARIO
A11: cliente6 | B11: 6 | C11: 19/05/16 | D11: 789 | E11: 129.18 | F11: 918.18 | G11: No | H11: ASSEGNO BANCARIO
A12: cliente1 | B12: 6 | C12: 19/05/16 | D12: 789 | E12: 129.18 | F12: 918.18 | G12: SI | H12: ASSEGNO BANCARIO
A13: cliente3 | B13: 6 | C13: 19/05/16 | D13: 789 | E13: 129.18 | F13: 918.18 | G13: SI | H13: ASSEGNO BANCARIO
A14: cliente6 | B14: 16 | C14: 19/05/16 | D14: 789 | E14: 129.18 | F14: 918.18 | G14: SI | H14: ASSEGNO BANCARIO
A15: cliente2 | B15: 16 | C15: 19/05/16 | D15: 789 | E15: 129.18 | F15: 918.18 | G15: SI | H15: ASSEGNO BANCARIO
